Cogmind - Beta 17.1 @@@ ROGUE MODE // 2026.09.12 @ 21:49:38 Player: Scuttle Result: Destroyed by D-53 Grenadier with Mini Grenade Launcher Performance ------------- Evolutions (0) 0 Regions Visited (2) 400 Robots Destroyed (28) 140 Value Destroyed (704) 704 Prototype IDs (0) 0 Alien Tech Used (0) 0 Bonus (0) 0 TOTAL SCORE: 1244 Bonus ------- None Cogmind --------- Core Integrity 0/250 Matter 280/300 Energy 238/250 System Corruption 0% Temperature Cool (0) Movement Treading (240) Ox1 Location -10/Mines Parts ------- > --- POWER (1) -------- Ion Engine > --- PROPULSION (2) --- Light Treads > --- UTILITY (2) ------ Improved Heat Sink Large Storage Unit > --- WEAPON (2) ------- Small Laser Grenade Launcher > --- INVENTORY (15) --- Compact Wheel Compact Wheel Heat Sink High-capacity Matter Pod (200) Medium Laser Small Laser Peak State ------------ > --- POWER ------------ Light Ion Engine > --- PROPULSION ------- Light Treads Light Treads > --- UTILITY ---------- Improved Heat Sink Large Storage Unit > --- WEAPON ----------- Small Laser Assault Rifle > --- INVENTORY -------- Light Ion Engine High-capacity Matter Pod Medium Laser Small Laser Small Laser [Rating: 9] Favorites ----------- Power Light Ion Engine Engine Light Ion Engine Propulsion Light Treads Treads Light Treads Utility Improved Heat Sink Device Improved Heat Sink Storage Large Storage Unit Weapon Assault Rifle Energy Gun Medium Laser Ballistic Gun Assault Rifle Launcher Grenade Launcher Build | -11 -10 -10 ------- Run | Yrd Mat Min Slots Evolved . | . . . Power . | . . . Propulsion . | . . . Utility . | . . . Weapon . | . . . Parts Attached 16 | 5 9 2 Power 4 | 1 3 . Engine 4 | 1 3 . Core . | . . . Reactor . | . . . Propulsion 4 | 2 2 . Treads 4 | 2 2 . Leg . | . . . Wheel . | . . . Hover . | . . . Flight . | . . . Utility 2 | . 2 . Device 1 | . 1 . Storage 1 | . 1 . Processor . | . . . Hackware . | . . . Protection . | . . . Artifact . | . . . Weapon 6 | 2 2 2 Energy Gun 4 | 1 2 1 Energy Cannon . | . . . Ballistic Gun 1 | 1 . . Ballistic Cannon . | . . . Launcher 1 | . . 1 Special Weapon . | . . . Impact Weapon . | . . . Slashing Weapon . | . . . Piercing Weapon . | . . . Special Melee Weapon . | . . . Unidentified Prototypes . | . . . Parts Lost 4 | . 2 2 Power 2 | . 2 . Propulsion 1 | . . 1 Utility . | . . . Weapon 1 | . . 1 Highest Loss Streak 1 | . 1 1 To Critical Strikes . | . . . Average Backups 4 | . 4 6 Power . | . . . Propulsion . | . . 2 Utility 1 | . 1 2 Weapon 2 | . 2 2 Tool/Special . | . . . Unused Backups 6 | . 1 5 Power . | . . . Propulsion 2 | . . 2 Utility 2 | . . 2 Weapon 2 | . 1 1 Tool/Special . | . . . Average Slot Usage (%) 92 | . 91 100 Engine 13 | . 13 14 Treads 28 | . 28 28 Device 11 | . 11 14 Storage 9 | . 9 14 Energy Gun 14 | . 14 20 Ballistic Gun 13 | . 14 7 Peak Build Rating 9 | 5 9 9 Average Rating 8 | 3 8 8 On Entrance 4 | . 5 9 Avg Prop Armor Cover (%) . | . . . Naked Turns . | . . . Heaviest Build 30 | 8 30 30 Greatest Support 40 | 40 40 40 Greatest Overweight (x) . | . . . Average Overweight (x) . | . . . Largest Inventory Capacity 15 | 5 15 15 Average Capacity 11 | 5 11 15 Most Carried 7 | 1 7 7 Average Carried 4 | . 4 6 Final Capacity 15 | 5 15 15 Final Carried 7 | 1 7 6 Class Distribution -------------------- 75% | Mutant 24% | Scavenger-Mutant Dominant Class ---------------- Mutant | -10/Materials Scavenger-Mutant | -10/Mines Resources | -11 -10 -10 ----------- Run | Yrd Mat Min Matter Collected 827 | 201 597 29 Remotely . | . . . Salvage Created 1116 | . 966 150 Parts 52 | . 43 9 Haulers Intercepted 2 | . 2 . Recyclers Shooed 4 | . 4 . Parts Field Recycled . | . . . Retrieved Matter . | . . . Parts Self-Destructed . | . . . Prevented . | . . . Parts Restored . | . . . Kills | -11 -10 -10 ------- Run | Yrd Mat Min Combat Hostiles Destroyed 22 | . 17 5 Guns 22 | . 17 5 Classes Destroyed 5 | . 5 . Hauler 2 | . 2 . Recycler 3 | . 3 . Watcher 1 | . 1 . Swarmer 6 | . 3 3 Grunt 16 | . 14 2 Best Kill Streak 3 | . 3 3 Combat Bots Only 3 | . 3 3 Max Kills in Single Turn 2 | . 1 2 Gunslinging 1 | . . 1 Exploded . | . . . Melee . | . . . Uniques/NPCs Destroyed . | . . . Combat | -11 -10 -10 -------- Run | Yrd Mat Min Hostile Shots Fired 124 | . 92 32 Missed 33 | . 25 8 Hits 91 | . 67 24 Projectile 91 | . 67 24 AOE 4 | . . 4 Damage Taken 1206 | . 797 409 Core 263 | . 182 81 Absorbed by Shields . | . . . Core Remaining (%) 100 | 100 . . Volleys Fired 107 | . 93 14 Largest 2 | . 2 2 Hottest 90 | . 70 90 Shots Fired 211 | . 185 26 Gun 210 | . 185 25 Cannon . | . . . Launcher 1 | . . 1 Special . | . . . Kinetic 101 | . 93 8 Thermal 109 | . 92 17 Explosive 1 | . . 1 Electromagnetic . | . . . Robot Hit Streak 19 | . 19 10 Robot Miss Streak 7 | . 7 2 Penetration Max . | . . . Secondary Targets 5 | . 2 3 Max Gunslinging Chain 1 | . 1 1 Shots Hit Robots 139 | . 121 18 Core Hits 52 | . 43 9 Critical Kills . | . . . Critical Parts Destroyed . | . . . Critical Strikes 7 | . 6 1 Burn 7 | . 6 1 Melee Attacks . | . . . Impact . | . . . Slashing . | . . . Piercing . | . . . Sneak Attacks . | . . . Combat Hostiles . | . . . Follow-up Attacks . | . . . Damage Inflicted 1775 | . 1539 236 Guns 1741 | . 1527 214 Cannons . | . . . Explosions 20 | . . 20 Melee . | . . . Ramming 14 | . 12 2 Kinetic 859 | . 793 66 Thermal 882 | . 734 148 Explosive 20 | . . 20 Electromagnetic . | . . . Impact . | . . . Slashing . | . . . Piercing . | . . . Highest Corruption . | . . . Average Corruption . | . . . Corruption Purged . | . . . Corruption Blocked . | . . . Overload Shots . | . . . Overflow Damage . | . . . Projectiles . | . . . Explosions . | . . . Melee . | . . . Knockbacks . | . . . Impact . | . . . Kinetic . | . . . Secondary . | . . . Self-Inflicted Damage . | . . . Shots . | . . . Rammed 7 | . 6 1 Targets Rammed 7 | . 6 1 Kicked . | . . . Crushed . | . . . Highest Temperature 45 | . 45 4 Average Temperature 25 | . 28 4 Received Heat Transfer 489 | . 405 84 Siege Activations . | . . . Martial Activations . | . . . Shielding Activations . | . . . Robots Disrupted . | . . . Combat Hostiles . | . . . Robots Corrupted . | . . . Combat Hostiles . | . . . Parts Fried . | . . . Impact Corruptions . | . . . Robots Melted . | . . . Combat Hostiles . | . . . Parts Melted 3 | . 3 . Heat Transferred 2882 | . 2400 482 Parts Sabotaged . | . . . Parts Stolen . | . . . Parts Stripped . | . . . Power Chain Reactions . | . . . Alert | -11 -10 -10 ------- Run | Yrd Mat Min Maximum Alert Level . | . . . Low Security (%) 100 | 100 100 100 Level 1 . | . . . Level 2 . | . . . Level 3 . | . . . Level 4 . | . . . Level 5 . | . . . High Security . | . . . Max Security . | . . . Peak Influence 102 | . 102 95 Initial 28 | . . 28 Average 52 | . 56 44 Influence Increases 713 | . 571 142 Destroy 0b10 Robot/C 440 | . 340 100 Destroy 0b10 Robot/NC 30 | . 30 . Destroy Leader 116 | . 96 20 Successful Hack 14 | . 14 . Select Force Hacks 60 | . 60 . Disable Machine 15 | . 15 . Destroy Structure 8 | . 1 7 Lose Combat Pursuer 30 | . 15 15 Influence Decreases 671 | . 496 175 Entered New Map 47 | . . 47 Time Decay 584 | . 476 108 Lost Part 40 | . 20 20 Squads Dispatched 5 | . 5 . Investigation 3 | . 3 . Extermination . | . . . Reinforcement 2 | . 2 . Assault . | . . . Garrison . | . . . Intercept . | . . . Searches Triggered . | . . . Construction Impeded . | . . . Haulers Reinforced . | . . . Active Scanning Responses . | . . . Cargo Convoy Interrupts . | . . . Stealth | -11 -10 -10 --------- Run | Yrd Mat Min Distress Signals 2 | . 2 . Communications Jammed . | . . . Distress Signals . | . . . Times Spotted 36 | . 28 8 Peak Tracking Total 4 | . 4 3 Tactical Retreats 2 | . 1 1 Traps | -11 -10 -10 ------- Run | Yrd Mat Min Traps Triggered 2 | . 2 . Indirectly . | . . . Trap Hack Attempts . | . . . Triggered . | . . . Disarmed . | . . . Reprogrammed . | . . . Reused . | . . . Traps Extracted . | . . . Installed . | . . . Triggered . | . . . Machines | -11 -10 -10 ---------- Run | Yrd Mat Min Machines Disabled 1 | . 1 . Max in Single Turn 1 | . 1 . Machines Repaired . | . . . Machines Dismantled . | . . . Machines Sabotaged . | . . . Overloaded Fab Kills . | . . . Hacking | -11 -10 -10 --------- Run | Yrd Mat Min Machines Accessed 5 | . 5 . Terminals 3 | . 3 . Fabricators . | . . . Repair Stations . | . . . Recycling Units 2 | . 2 . Scanalyzers . | . . . Garrison Access . | . . . Total Hacks 8 | . 8 . Successful 5 | . 5 . Failed 3 | . 3 . Catastrophic 1 | . 1 . Database Lockouts . | . . . Manual 8 | . 8 . Terminals 6 | . 6 . Fabricators . | . . . Repair Stations . | . . . Recycling Units 2 | . 2 . Scanalyzers . | . . . Garrison Access . | . . . Terminal Hacks 1 | . 1 . Robot Analysis 1 | . 1 . Fabricator Hacks . | . . . Repair Station Hacks . | . . . Recycling Unit Hacks . | . . . Scanalyzer . | . . . Garrison Access Hacks . | . . . Unauthorized Hacks 4 | . 4 . Terminals 2 | . 2 . Botnet 2 | . 2 . Fabricators . | . . . Repair Stations . | . . . Recycling Units 2 | . 2 . Tunnel 2 | . 2 . Scanalyzers . | . . . Garrison Access . | . . . Data Cores Recovered . | . . . Used . | . . . Hacking Detections 2 | . 2 . Full Trace Events . | . . . Feedback Events . | . . . Feedback Blocked . | . . . Robot Schematics Acquired . | . . . Robots Built . | . . . Authchips . | . . . Time . | . . . Total Robot Build Rating . | . . . Part Schematics Acquired . | . . . Parts Built . | . . . Authchips . | . . . Time . | . . . Total Part Build Rating . | . . . Part Studies Acquired . | . . . Parts Repaired . | . . . Time . | . . . Parts Recycled . | . . . Recycled Matter . | . . . Retrieved Matter . | . . . Retrieved Components . | . . . Parts Scanalyzed . | . . . Part Schematics Acquired . | . . . Parts Damaged . | . . . Bothacking | -11 -10 -10 ------------ Run | Yrd Mat Min Used RIF Installer . | . . . Robots Hacked . | . . . Non-combat . | . . . Combat . | . . . Robot Hacks Applied . | . . . Relay Couplers Released . | . . . Fabnet Peak Effective % . | . . . Robots Rewired . | . . . Allies Hacked . | . . . Hacks Repelled . | . . . Allies | -11 -10 -10 -------- Run | Yrd Mat Min Total Allies . | . . . Largest Group . | . . . Highest-Rated Group . | . . . Highest-Rated Ally . | . . . Total Orders . | . . . Ally Attacks . | . . . Total Damage . | . . . Kills . | . . . Allies Corrupted . | . . . Allies Melted . | . . . Intel | -11 -10 -10 ------- Run | Yrd Mat Min Active Infowar (turns) . | . . . Robot Analysis Total 1 | . 1 . Derelict Logs Recovered . | . . . Drone Launches . | . . . Drone Recoveries . | . . . Exploration | -11 -10 -10 ------------- Run | Yrd Mat Min Turns Passed 1668 | 70 1350 248 Spaces Moved 777 | 42 609 126 Core 4 | 4 . . Treads 773 | 38 609 126 Legs . | . . . Wheels . | . . . Hover . | . . . Flight . | . . . Fastest Speed 50 | 50 160 160 Average Speed 159 | 149 160 160 Slowest Speed 160 | 160 160 160 Overloaded Moves . | . . . Propulsion Burnouts . | . . . Robots Hopped . | . . . Potential Cave-ins . | . . . Cave-ins Triggered . | . . . Exploration Rate (%) 40 | 3 85 34 Regions Visited 2 Branch Regions 1 Pre-discovered Areas 2 | . 2 . Known Exits Taken . | . . . Unknown Exits Taken 2 | 1 1 . Scrap Searched . | . . . Spaces Dug . | . . . Terrain Destroyed 7 | . . 7 Melee . | . . . Projectile . | . . . AOE 7 | . . 7 Terrain Rammed . | . . . Walls Destroyed . | . . . Machines Disabled . | . . . Actions | -11 -10 -10 --------- Run | Yrd Mat Min Total 989 | 47 796 146 Wait 68 | . 65 3 Move 776 | 41 609 126 Hop . | . . . Pick Up 10 | 1 9 . Fast Attach 8 | 5 3 . Attach 2 | . 1 1 Detach . | . . . Swap 6 | . 5 1 Drop 6 | . 6 . Fire 107 | . 93 14 Melee . | . . . Ram . | . . . Kick . | . . . Crush 6 | . 5 1 Escape Stasis . | . . . Rewire . | . . . Trap . | . . . Miscellaneous . | . . . Route ------- -11/Scrapyard -10/Materials (discovered 5 exits: [*Mat x3] / [*Min] / [*Sub]) -10/Mines (discovered 1 exit: [*Mat]) History --------- Turn | Location | Event 8 | -11/Scrapyard | Discovered new exit (range 15) 71 | -11/Scrapyard | Entered Materials 308 | -10/Materials | Build established: Mutant 443 | -10/Materials | Discovered new exit (range 10) 505 | -10/Materials | Discovered new exit (range 15) 743 | -10/Materials | Discovered new exit (range 14) 801 | -10/Materials | Core integrity fell below 50% 906 | -10/Materials | Discovered new exit (range 16) 1168 | -10/Materials | Discovered new exit (range 12) 1421 | -10/Materials | Entered Mines 1479 | -10/Mines | Discovered new exit (range 5) 1505 | -10/Mines | Core integrity fell below 20% 1575 | -10/Mines | Build established: Scavenger-Mutant 1656 | -10/Mines | Assembled infested the area 1669 | -10/Mines | Destroyed by D-53 Grenadier with Mini Grenade Launcher Last Messages --------------- 01510_ G-47 Trooper destroyed. 01510_ Switching to secondary target: G-34 Mercenary. 01510_ G-34 Mercenary destroyed. 01513_ Acquired 18 matter. 01527_ R-06 Scavenger collects Aluminum Leg. 01549_ S-10 Pest destroyed. 01549_ Switching to secondary target: S-10 Pest. 01550_ Assault Rifle destroyed. 01558_ S-10 Pest suffers critical hit (Burn). 01558_ S-10 Pest destroyed. 01558_ Switching to secondary target: S-10 Pest. 01564_ S-10 Pest destroyed. 01572_ Acquired 11 matter. 01583_ Slammed into T-07 Excavator. 01656_ ALERT: Infestation in the mines, dispatching Demolisher response squad. 01667_ C-45 Heavy ARC bursts open, deploying its payload. 01667_ D-53 Grenadier unfolds itself. 01667_ Lgt. Treads destroyed. 01668_ K-01 Serf destroyed. Map ----- +----------------------------------------------------+ | ???????????????????????????????????????###??????? | | ??????????????????????????????????????## ##????? | | ?????????????????????????????????????## ##???? | | ???????????????????????????????????### ##??? | | ??????????????????????????????????## ???? | | ??????????????????????????????????# """ ???# | | ?????????????????????????????????## """ #??## | | ????????????????????????????????## """ #### | | ????????????????????????????????# | | ????????????????????????????????# | | ???????????????????????? ????????# ### | | ???????????????????????? ????????## #?# | | ???????????????????????? ?????????## ### #?# | | ???????????????????????# ??????????## #?## ##?## | | ??????????????????????## ???????????# #??# #???# | | ?????????????????????## ???????##### #### #???## | | ?????????????????????# ???????# %=% #????# | | ?????????????????????? #??????# ### ######????? | | ??????????????????????# #??????# ### ##????????? | | ??????????????????????#$ #??##### ## ##???????? | | ??????????????????????# =#??# % !##??????? | | ????????????????????###!%#### !<% #####??? | | ???????????????????## # #### = #??? | | ????????????????#$## #?## %# #??? | | ????????????????# #??## ######%#??? | | ??????????????????# @ #???# #????# #??? | | ??????????????????# # d #???# #????# #??? | | ??????????????????# d #???# #????# #??? | | ??????????????????### #??# #????# #??? | | ????????????????????### ##??# #????#%#??? | | ??????????????????????## ## #??# #?#### #### | | ???????????????????????###### #??# #?# | | ????????????????????????????## #?# ### """ """ | | ?????????????????????????????? #?# """%""" | | ??????????????????????????????# ##?##### """ """ | | ???????????????????????????????###??????# = | | ????????????????????????????????????????# """ """ | | ????????????????????????????????????????# """ """ | | ????????????????????????????????????????# """ """ | | ????????????????????????????????????????# | | ????????????????????????????????????????# | | ????????????????????????????????????????######### | | ????????????????????????????????????????????????? | | | | | | | | | | | | | | | +----------------------------------------------------+ Best States ------------- Heat Dissipation 39 Energy Generation 10 Energy Capacity 250 Matter Stores 300 Matter Capacity 300 Sight Range 16 Terrain Scan Density 10 Evasion (%) 40 Recoil Reduction 2 Item Schematics ----------------- None Robot Schematics ------------------ None Fabricated ------------ Nothing Repaired ---------- Nothing Studied --------- None Alien Tech Used ----------------- None Achievements -------------- None Challenges ------------ None Game ------ Seed MetafiberMeleeBlasthammer Manual? 0 Play Time 00:09:37 Cumulative 669.0 hours Start 2026.09.12 @ 21:39:55 End 2026.09.12 @ 21:49:38 Sessions 1 Manual Loads 0 Difficulty Rogue Special Mode None Game No. 296 Rogue 296 Adventurer 0 Explorer 0 Win Type - Total 42 Types 20/5/6/2/1/2/2/2/1/1 Lore% 93 Gallery% 83 Achievement% 80 Wizard Run 0 Options --------- Layout 0 ASCII 0 Keyboard 1 Movement Arrows Keybinds 0 Fullscreen 2 Font 18/Terminus Map View 76x50 Zoom Use 0% Tactical HUD 1 Map Filters BRIGHTNESS(90)|SATURATION(90) Filters NONE Steam 1 RUN: 892fa725-e5fe-4961-8ea9-bca20b5a4969